fUST/lending_fUST_20241114
["ID","MTS","AMOUNT","RATE_DAILY","PERIOD"]
[342223351,1731597073991,-754.96,0.0001863,2]
[342223352,1731597074001,-671.15,0.0001863,2]
[342223353,1731597074014,-961.33,0.0001863,2]
[342223354,1731597074023,-500.0,0.0001863,2]
[342223355,1731597074033,-500.0,0.0001863,2]
[342223356,1731597074042,-500.0,0.0001863,2]
[342223357,1731597074051,-1713.05,0.0001863,2]
[342223358,1731597074060,-500.0,0.0001863,2]
[342223359,1731597074070,-623.84,0.0001863,2]
[342223360,1731597074079,-1026.35,0.0001863,2]
[342223361,1731597074089,-500.0,0.0001863,2]
[342223362,1731597074098,-2653.38,0.0001863,2]
[342223363,1731597074108,-684.68,0.0001863,2]
[342223364,1731597074117,-651.58,0.0001863,2]
[342223365,1731597074127,-934.5,0.0001863,2]
[342223366,1731597074136,-654.07,0.0001863,2]
[342223367,1731597074146,-913.47,0.0001863,2]
[342223368,1731597074156,-500.0,0.0001863,2]
[342223369,1731597074166,-500.0,0.0001863,2]
[342223370,1731597074175,-500.0,0.0001863,2]
[342223371,1731597074185,-1899.22,0.0001863,2]
[342223372,1731597074194,-500.0,0.0001863,2]
[342223373,1731597074205,-3864.77,0.0001863,2]
[342223374,1731597074214,-643.63,0.0001863,2]
[342223375,1731597074225,-726.19,0.0001863,2]
[342223376,1731597074235,-500.0,0.0001863,2]
[342223377,1731597074244,-500.0,0.0001863,2]
[342223378,1731597074253,-585.4,0.0001863,2]
[342223379,1731597074266,-500.0,0.0001863,2]
[342223380,1731597074275,-1279.89,0.0001863,2]
[342223381,1731597074284,-500.0,0.0001863,2]
[342223382,1731597074294,-552.98,0.0001863,2]
[342223383,1731597074303,-500.0,0.0001863,2]
[342223384,1731597074312,-616.87,0.0001863,2]
[342223385,1731597074322,-642.81,0.0001863,2]
[342223386,1731597074331,-584.67,0.0001863,2]
[342223387,1731597074340,-500.0,0.0001863,2]
[342223388,1731597074350,-500.0,0.0001863,2]
[342223389,1731597074359,-6521.63,0.0001863,2]
[342223390,1731597074368,-779.32,0.0001863,2]
[342223391,1731597074377,-11398.1,0.0001863,2]
[342223392,1731597074387,-754.56,0.0001863,2]
[342223393,1731597074396,-500.0,0.0001863,2]
[342223394,1731597074405,-500.0,0.0001863,2]
[342223395,1731597074415,-500.0,0.0001863,2]
[342223396,1731597074426,-500.0,0.0001863,2]
[342223397,1731597074438,-14354.82,0.0001863,2]
[342223398,1731597074447,-500.0,0.0001863,2]
[342223399,1731597074457,-3874.05,0.0001863,2]
[342223400,1731597074467,-500.0,0.0001863,2]
[342223401,1731597074476,-563.21,0.0001863,2]
[342223402,1731597074485,-323.14259958,0.0001863,2]
[342223403,1731597074495,-1367.655934,0.000189,2]
[342223404,1731597074510,-592.303162,0.000189,2]
[342223405,1731597074520,-592.30316,0.000189,2]
[342223406,1731597074529,-188.796793,0.00018904,2]
[342223407,1731597074537,-188.796793,0.00018904,2]
[342223408,1731597074546,-500.0,0.00018904,2]
[342223409,1731597074555,-500.0,0.00018904,2]
[342223410,1731597074565,-568.0,0.00018904,2]
[342223411,1731597074575,-500.0,0.00018904,2]
[342223412,1731597074584,-543.52,0.00018904,2]
[342223413,1731597074594,-853.04,0.00018904,2]
[342223414,1731597074603,-615.67,0.00018904,2]
[342223415,1731597074612,-500.0,0.00018904,2]
[342223416,1731597074621,-773.257391,0.00018904,2]
[342223417,1731597074630,-773.257391,0.00018904,2]
[342223418,1731597074639,-638.38968,0.00018904,2]
[342223419,1731597074648,-516.91,0.00018904,2]
[342223420,1731597074658,-638.38968,0.00018904,2]
[342223421,1731597074667,-500.0,0.00018904,2]
[342223422,1731597074676,-521.17,0.00018904,2]
[342223423,1731597074686,-714.41,0.00018904,2]
[342223424,1731597074695,-555.5,0.00018904,2]
[342223425,1731597074704,-542.83,0.00018904,2]
[342223426,1731597074714,-813.13,0.00018904,2]
[342223427,1731597074723,-500.0,0.00018904,2]
[342223428,1731597074732,-500.0,0.00018904,2]
[342223429,1731597074742,-545.22,0.00018904,2]
[342223430,1731597074751,-500.0,0.00018904,2]
[342223431,1731597074764,-500.0,0.00018904,2]
[342223432,1731597074773,-500.0,0.00018904,2]
[342223433,1731597074783,-558.82,0.00018904,2]
[342223434,1731597074793,-500.0,0.00018904,2]
[342223435,1731597074802,-500.0,0.00018904,2]
[342223436,1731597074812,-500.0,0.00018904,2]
[342223437,1731597074821,-500.0,0.00018904,2]
[342223438,1731597074831,-500.0,0.00018904,2]
[342223439,1731597074841,-500.0,0.00018904,2]
[342223440,1731597074850,-500.0,0.00018904,2]
[342223441,1731597074860,-570.38,0.00018904,2]
[342223442,1731597074869,-638.45,0.00018904,2]
[342223443,1731597074878,-548.09,0.00018904,2]
[342223444,1731597074888,-500.0,0.00018904,2]
[342223445,1731597074899,-500.0,0.00018904,2]
[342223446,1731597074909,-597.15,0.00018904,2]
[342223447,1731597074919,-500.0,0.00018904,2]
[342223448,1731597074929,-500.0,0.00018904,2]
[342223449,1731597074939,-500.0,0.00018904,2]
[342223450,1731597074948,-500.0,0.00018904,2]
[342223451,1731597074958,-500.0,0.00018904,2]
[342223452,1731597074968,-777.17,0.00018904,2]
[342223453,1731597074978,-500.0,0.00018904,2]
[342223454,1731597074987,-500.0,0.00018904,2]
[342223455,1731597074997,-500.0,0.00018904,2]
[342223456,1731597075009,-500.0,0.00018904,2]
[342223457,1731597075018,-640.94,0.00018904,2]
[342223458,1731597075028,-500.0,0.00018904,2]
[342223459,1731597075037,-500.0,0.00018904,2]
[342223460,1731597075046,-539.44,0.00018904,2]
[342223461,1731597075055,-616.05,0.00018904,2]
[342223462,1731597075065,-535.28,0.00018904,2]
[342223463,1731597075074,-617.75,0.00018904,2]
[342223464,1731597075084,-500.0,0.00018904,2]
[342223465,1731597075093,-500.0,0.00018904,2]
[342223466,1731597075102,-500.0,0.00018904,2]
[342223467,1731597075111,-500.0,0.00018904,2]
[342223468,1731597075121,-636.71,0.00018904,2]
[342223469,1731597075131,-500.0,0.00018904,2]
[342223470,1731597075140,-500.0,0.00018904,2]
[342223471,1731597075149,-1592.85,0.00018904,2]
[342223472,1731597075159,-1049.38,0.00018904,2]
[342223473,1731597075169,-500.0,0.00018904,2]
[342223474,1731597075180,-589.52,0.00018904,2]
[342223475,1731597075189,-500.0,0.00018904,2]
[342223476,1731597075198,-500.0,0.00018904,2]
[342223477,1731597075207,-500.0,0.00018904,2]
[342223478,1731597075216,-788.8,0.00018904,2]
[342223479,1731597075226,-500.0,0.00018904,2]
[342223480,1731597075236,-950.02,0.00018904,2]
[342223481,1731597075246,-692.64,0.00018904,2]
[342223482,1731597075259,-500.0,0.00018904,2]
[342223483,1731597075268,-1705.94,0.00018904,2]
[342223484,1731597075278,-500.0,0.00018904,2]
[342223485,1731597075287,-564.22982988,0.00018904,2]
[342223486,1731597075297,-1211.36,0.00018904,2]
[342223487,1731597075306,-1341.99,0.00018904,2]
[342223488,1731597075315,-500.0,0.00018904,2]
[342223489,1731597075325,-1503.18,0.00018904,2]
[342223490,1731597075334,-585.8,0.00018904,2]
[342223491,1731597075343,-500.0,0.00018904,2]
[342223492,1731597075353,-500.0,0.00018904,2]
[342223493,1731597075362,-500.0,0.00018904,2]
[342223494,1731597075372,-882.36,0.00018904,2]
[342223495,1731597075382,-500.0,0.00018904,2]
[342223496,1731597075391,-500.0,0.00018904,2]
[342223497,1731597075401,-1850.19,0.00018904,2]
[342223498,1731597075410,-754.96,0.00018904,2]
[342223499,1731597075420,-671.15,0.00018904,2]
[342223500,1731597075431,-961.33,0.00018904,2]
[342223501,1731597075441,-500.0,0.00018904,2]
[342223502,1731597075451,-500.0,0.00018904,2]
[342223503,1731597075461,-500.0,0.00018904,2]
[342223504,1731597075471,-1713.05,0.00018904,2]
[342223505,1731597075481,-500.0,0.00018904,2]
[342223506,1731597075490,-623.84,0.00018904,2]
[342223507,1731597075500,-1026.35,0.00018904,2]
[342223508,1731597075513,-500.0,0.00018904,2]
[342223509,1731597075523,-2653.38,0.00018904,2]
[342223510,1731597075532,-684.68,0.00018904,2]
[342223511,1731597075541,-651.58,0.00018904,2]
[342223512,1731597075551,-934.5,0.00018904,2]
[342223513,1731597075560,-654.07,0.00018904,2]
[342223514,1731597075570,-913.47,0.00018904,2]
[342223515,1731597075579,-500.0,0.00018904,2]
[342223516,1731597075588,-500.0,0.00018904,2]
[342223517,1731597075598,-500.0,0.00018904,2]
[342223518,1731597075608,-1899.22,0.00018904,2]
[342223519,1731597075617,-500.0,0.00018904,2]
[342223520,1731597075627,-3864.77,0.00018904,2]
[342223521,1731597075637,-643.63,0.00018904,2]
[342223522,1731597075646,-726.19,0.00018904,2]
[342223523,1731597075656,-500.0,0.00018904,2]
[342223524,1731597075665,-585.4,0.00018904,2]
[342223525,1731597075674,-500.0,0.00018904,2]
[342223526,1731597075682,-500.0,0.00018904,2]
[342223527,1731597075691,-1279.89,0.00018904,2]
[342223528,1731597075701,-500.0,0.00018904,2]
[342223529,1731597075710,-552.98,0.00018904,2]
[342223530,1731597075720,-500.0,0.00018904,2]
[342223531,1731597075729,-616.87,0.00018904,2]
[342223532,1731597075738,-642.81,0.00018904,2]
[342223533,1731597075748,-584.67,0.00018904,2]
[342223534,1731597075763,-500.0,0.00018904,2]
[342223535,1731597075772,-500.0,0.00018904,2]
[342223536,1731597075781,-6521.63,0.00018904,2]
[342223537,1731597075790,-779.32,0.00018904,2]
[342223538,1731597075800,-11398.1,0.00018904,2]
[342223539,1731597075809,-754.56,0.00018904,2]
[342223540,1731597075819,-500.0,0.00018904,2]
[342223541,1731597075828,-321.22651407,0.00018904,2]
[342223542,1731597075838,-500.0,0.00018904,2]
[342223543,1731597075847,-500.0,0.00018904,2]
[342223544,1731597075855,-14354.82,0.00018904,2]
[342223545,1731597075864,-500.0,0.00018904,2]
[342223546,1731597075873,-3874.05,0.00018904,2]
[342223547,1731597075883,-500.0,0.00018904,2]
[342223548,1731597075892,-563.21,0.00018904,2]
[342223549,1731597075901,-773.257391,0.00018973,2]
[342223550,1731597075911,-773.257391,0.00018973,2]
[342223551,1731597075919,-638.38968,0.00018973,2]
[342223552,1731597075929,-638.38968,0.00018973,2]
[342223553,1731597075938,-765203.96055372,0.00019,2]
[342223554,1731597076247,-19099.58767891,0.00019,2]
[342223555,1731597076554,669.92,0.00010959,2]
[342223556,1731597077289,453.23,0.00010959,2]
[342223557,1731597111497,310982.144119,0.0001,2]
[342223558,1731597111530,140974.520205,0.0001,2]
[342223559,1731597215323,176.0,0.00027,60]
[342223575,1731598048102,1000.0,0.00027,60]
[342223644,1731598234984,-242.5347501,0.00013926,2]
[342223645,1731598234994,-400.0,0.00013973,2]
[342223646,1731598235004,-250.0,0.0001432,2]
[342223647,1731598235014,-293.717274,0.00014368,2]
[342223648,1731598235025,-300.0,0.00014438,2]
[342223649,1731598235035,-14680.41003327,0.00014439,2]
[342223650,1731598235046,-380.10004,0.00014439,2]
[342223651,1731598235063,-666.30320645,0.00014439,2]
[342223652,1731598235074,-713.59446931,0.00014439,2]
[342223711,1731598238680,-8459.59225097,0.00014439,2]
[342223713,1731598238689,-2301.7770452,0.00014596,2]
[342223715,1731598238699,-541.9056326,0.00014864,2]
[342223716,1731598238709,-164.854363,0.00014882,2]
[342223719,1731598238719,-164.854363,0.00014896,2]
[342223722,1731598238728,-164.854363,0.00014911,2]
[342223724,1731598238738,-164.854363,0.00014926,2]
[342223725,1731598238747,-164.854363,0.00014941,2]
[342223726,1731598238756,-164.854363,0.00014956,2]
[342223727,1731598238765,-420.0,0.00015881,2]
[342223728,1731598238774,-2055.72413037,0.00016338,2]
[342223729,1731598238783,-4339.95865396,0.00016429,2]
[342223730,1731598238797,-1300.25333138,0.00016437,2]
[342223731,1731598238806,-500.0,0.00016437,2]
[342223732,1731598238815,-207.69297177,0.00016437,2]
[342223733,1731598238825,-500.0,0.00016437,2]
[342223734,1731598238835,-189.03617988,0.00016437,2]
[342223735,1731598238845,-571.08610326,0.00016437,2]
[342223736,1731598238857,-500.0,0.00016437,2]
[342223737,1731598238867,-489.01848924,0.00016437,2]
[342223738,1731598238878,-176.58544793,0.00016437,2]
[342223739,1731598238889,-6042.60516866,0.00016437,2]
[342223740,1731598238899,-371.71613655,0.00016437,2]
[342223741,1731598238908,-267.88069961,0.00016437,2]
[342223742,1731598238917,-500.0,0.00016437,2]
[342223743,1731598238926,-256.26845481,0.00016437,2]
[342223744,1731598238935,-427.32817511,0.00016437,2]
[342223745,1731598238944,-558.22843019,0.00016437,2]
[342223746,1731598238954,-500.0,0.00016437,2]
[342223747,1731598238963,-197.78694032,0.00016437,2]
[342223748,1731598238973,-388.38482481,0.00016437,2]
[342223749,1731598238982,-500.0,0.00016437,2]
[342223750,1731598238992,-500.0,0.00016437,2]
[342223751,1731598239001,-500.78016918,0.00016437,2]
[342223752,1731598239010,-500.0,0.00016437,2]
[342223753,1731598239019,-500.0,0.00016437,2]
[342223754,1731598239029,-500.0,0.00016437,2]
[342223755,1731598239039,-500.0,0.00016437,2]
[342223756,1731598239048,-500.0,0.00016437,2]
[342223757,1731598239058,-500.0,0.00016437,2]
[342223758,1731598239067,-500.0,0.00016437,2]
[342223759,1731598239076,-486.62718743,0.00016437,2]
[342223760,1731598239085,-500.0,0.00016437,2]
[342223761,1731598239094,-500.0,0.00016437,2]
[342223762,1731598239104,-500.0,0.00016437,2]
[342223763,1731598239113,-500.0,0.00016437,2]
[342223764,1731598239122,-500.0,0.00016437,2]
[342223765,1731598239134,-500.0,0.00016437,2]
[342223766,1731598239143,-620.0,0.00016437,2]
[342223767,1731598239153,-500.0,0.00016437,2]
[342223768,1731598239163,-500.0,0.00016437,2]
[342223769,1731598239173,-500.0,0.00016437,2]
[342223770,1731598239182,-500.0,0.00016437,2]
[342223771,1731598239191,-606.56893781,0.00016437,2]
[342223772,1731598239200,-500.0,0.00016437,2]
[342223773,1731598239210,-500.0,0.00016437,2]
[342223774,1731598239220,-500.0,0.00016437,2]
[342223775,1731598239230,-328.8617166,0.00016437,2]
[342223776,1731598239240,-500.0,0.00016437,2]
[342223777,1731598239250,-456.08370716,0.00016437,2]
[342223778,1731598239259,-500.0,0.00016437,2]
[342223779,1731598239269,-380.36612373,0.00016437,2]
[342223780,1731598239279,-500.0,0.00016438,2]
[342223781,1731598239289,-500.0,0.00016438,2]
[342223782,1731598239298,-500.0,0.00016438,2]
[342223783,1731598239307,-153.702762,0.00016438,2]
[342223784,1731598239317,-153.702762,0.00016438,2]
[342223785,1731598239327,-153.702762,0.00016438,2]
[342223786,1731598239336,-153.702762,0.00016438,2]
[342223787,1731598239346,-153.702762,0.00016438,2]
[342223788,1731598239356,-153.702762,0.00016438,2]
[342223789,1731598239365,-500.0,0.00016438,2]
[342223790,1731598239375,-538.16940054,0.00016438,2]
[342223791,1731598239387,-516.40141174,0.00016438,2]
[342223792,1731598239396,-513.56965262,0.00016438,2]
[342223793,1731598239405,-502.15316848,0.00016438,2]
[342223794,1731598239414,-500.0,0.00016438,2]
[342223795,1731598239424,-829.906584,0.00016438,2]
[342223796,1731598239433,-829.906584,0.00016438,2]
[342223797,1731598239442,-829.906584,0.00016438,2]
[342223798,1731598239452,-829.906584,0.00016438,2]
[342223799,1731598239461,-829.906584,0.00016438,2]
[342223800,1731598239471,-829.906584,0.00016438,2]
[342223801,1731598239480,-500.0,0.00016438,2]
[342223802,1731598239490,-500.0,0.00016438,2]
[342223803,1731598239499,-501.29323074,0.00016438,2]
[342223804,1731598239509,-502.39998536,0.00016438,2]
[342223805,1731598239519,-544.55089508,0.00016438,2]
[342223806,1731598239528,-500.0,0.00016438,2]
[342223807,1731598239537,-500.0,0.00016438,2]
[342223808,1731598239546,-500.0,0.00016438,2]
[342223809,1731598239556,-502.48448002,0.00016438,2]
[342223810,1731598239566,-1641.844745,0.00016438,2]
[342223811,1731598239575,-1641.844745,0.00016438,2]
[342223812,1731598239584,-1641.844745,0.00016438,2]
[342223813,1731598239593,-1641.844745,0.00016438,2]
[342223814,1731598239603,-162.568417,0.00016438,2]
[342223815,1731598239612,-544.88293281,0.00016438,2]
[342223816,1731598239621,-155.51801254,0.00016438,2]
[342223817,1731598239632,-500.0,0.00016438,2]
[342223818,1731598239641,-500.0,0.00016438,2]
[342223819,1731598239651,-500.0,0.00016438,2]
[342223820,1731598239659,-500.0,0.00016438,2]
[342223821,1731598239669,-500.0,0.00016438,2]
[342223822,1731598239678,-534.3205922,0.00016438,2]
[342223823,1731598239687,-500.0,0.00016438,2]
[342223824,1731598239697,-500.0,0.00016438,2]
[342223825,1731598239706,-500.0,0.00016438,2]
[342223826,1731598239715,-500.0,0.00016438,2]
[342223827,1731598239724,-500.0,0.00016438,2]
[342223828,1731598239734,-500.0,0.00016438,2]
[342223829,1731598239744,-500.0,0.00016438,2]
[342223830,1731598239756,-500.0,0.00016438,2]
[342223831,1731598239766,-502.90424388,0.00016438,2]
[342223832,1731598239775,-500.0,0.00016438,2]
[342223833,1731598239792,-500.0,0.00016438,2]
[342223834,1731598239804,-500.0,0.00016438,2]
[342223835,1731598239814,-500.0,0.00016438,2]
[342223836,1731598239824,-500.0,0.00016438,2]
[342223837,1731598239834,-500.0,0.00016438,2]
[342223838,1731598239847,-500.0,0.00016438,2]
[342223839,1731598239857,-500.0,0.00016438,2]
[342223840,1731598239872,-500.0,0.00016438,2]
[342223841,1731598239883,-500.0,0.00016438,2]
[342223842,1731598239893,-500.0,0.00016438,2]
[342223843,1731598239903,-500.0,0.00016438,2]
[342223844,1731598239912,-522.99057373,0.00016438,2]
[342223845,1731598239921,-500.0,0.00016438,2]
[342223846,1731598239931,-500.0,0.00016438,2]
[342223847,1731598239939,-500.0,0.00016438,2]
[342223848,1731598239949,-152.15947373,0.00016438,2]
[342223849,1731598239959,-500.0,0.00016438,2]
[342223850,1731598239968,-500.0,0.00016438,2]
[342223851,1731598239978,-500.0,0.00016438,2]
[342223852,1731598239988,-500.0,0.00016438,2]
[342223854,1731598239999,-500.0,0.00016438,2]
[342223855,1731598240008,-500.0,0.00016438,2]
[342223856,1731598240019,-500.0,0.00016438,2]
[342223857,1731598240030,-500.0,0.00016438,2]
[342223858,1731598240040,-500.0,0.00016438,2]
[342223859,1731598240050,-500.00000001,0.00016438,2]
[342223860,1731598240059,-500.0,0.00016438,2]
[342223861,1731598240069,-500.0,0.00016438,2]
[342223862,1731598240078,-500.0,0.00016438,2]
[342223863,1731598240087,-500.0,0.00016438,2]
[342223866,1731598240096,-500.0,0.00016438,2]
[342223868,1731598240106,-500.0,0.00016438,2]
[342223870,1731598240115,-500.0,0.00016438,2]
[342223871,1731598240124,-500.0,0.00016438,2]
[342223872,1731598240139,-500.0,0.00016438,2]
[342223873,1731598240151,-518.34173318,0.00016438,2]
[342223874,1731598240160,-503.52521314,0.00016438,2]
[342223875,1731598240170,-500.0,0.00016438,2]
[342223876,1731598240179,-452.40090341,0.00016438,2]
[342223877,1731598240189,-500.0,0.00016438,2]
[342223879,1731598240198,-500.0,0.00016438,2]
[342223881,1731598240208,-511.27124531,0.00016438,2]
[342223882,1731598240218,-500.0,0.00016438,2]
[342223884,1731598240229,-500.0,0.00016438,2]
[342223885,1731598240238,-500.0,0.00016438,2]
[342223886,1731598240248,-500.0,0.00016438,2]
[342223887,1731598240257,-589.69856728,0.00016438,2]
[342223888,1731598240267,-552.05828089,0.00016438,2]
[342223890,1731598240276,-500.0,0.00016438,2]
[342223892,1731598240286,-506.97603242,0.00016438,2]
[342223894,1731598240295,-501.06862261,0.00016438,2]
[342223895,1731598240305,-500.0,0.00016438,2]
[342223897,1731598240314,-500.0,0.00016438,2]
[342223899,1731598240324,-511.47453655,0.00016438,2]
[342223901,1731598240333,-500.0,0.00016438,2]
[342223903,1731598240343,-500.0,0.00016438,2]
[342223905,1731598240352,-577.55268064,0.00016438,2]
[342223907,1731598240362,-513.76268583,0.00016438,2]
[342223908,1731598240371,-311.57421566,0.00016438,2]
[342223909,1731598240383,-512.19937278,0.00016438,2]
[342223910,1731598240392,-500.0,0.00016438,2]
[342223911,1731598240401,-500.0,0.00016438,2]
[342223912,1731598240411,-500.0,0.00016438,2]
[342223913,1731598240420,-200.0,0.00016438,2]
[342223914,1731598240429,-500.0,0.00016438,2]
[342223915,1731598240438,-500.0,0.00016438,2]
[342223916,1731598240448,-546.39082937,0.00016438,2]
[342223917,1731598240458,-500.0,0.00016438,2]
[342223918,1731598240467,-500.0,0.00016438,2]
[342223919,1731598240477,-500.3693891,0.00016438,2]
[342223920,1731598240486,-500.0,0.00016438,2]
[342223921,1731598240495,-500.0,0.00016438,2]
[342223922,1731598240505,-500.0,0.00016438,2]
[342223923,1731598240514,-500.0,0.00016438,2]
[342223924,1731598240523,-500.0,0.00016438,2]
[342223925,1731598240533,-500.0,0.00016438,2]
[342223926,1731598240542,-500.0,0.00016438,2]
[342223927,1731598240551,-500.0,0.00016438,2]
[342223928,1731598240560,-500.0,0.00016438,2]
[342223929,1731598240569,-514.37776422,0.00016438,2]
[342223930,1731598240578,-500.0,0.00016438,2]
[342223931,1731598240588,-500.0,0.00016438,2]
[342223932,1731598240597,-500.0,0.00016438,2]
[342223933,1731598240607,-500.0,0.00016438,2]
[342223934,1731598240616,-561.81775729,0.00016438,2]
[342223935,1731598240625,-500.0,0.00016438,2]
[342223936,1731598240637,-500.0,0.00016438,2]
[342223937,1731598240646,-120.02799018,0.00016438,2]
[342223938,1731598240780,-397.72061514,0.00016438,2]
[342223939,1731598240791,-506.75282407,0.00016438,2]
[342223940,1731598240802,-884.96,0.00016438,2]
[342223941,1731598240811,-884.96,0.00016438,2]
[342223942,1731598240820,-884.96,0.00016438,2]
[342223943,1731598240829,-884.96,0.00016438,2]
[342223944,1731598240840,-884.96,0.00016438,2]
[342223945,1731598240849,-500.0,0.00016438,2]
[342223946,1731598240859,-884.96,0.00016438,2]
[342223947,1731598240868,-884.96,0.00016438,2]
[342223948,1731598240882,-884.96,0.00016438,2]
[342223949,1731598240892,-500.0,0.00016438,2]
[342223950,1731598240901,-500.0,0.00016438,2]
[342223951,1731598240911,-500.0,0.00016438,2]
[342223952,1731598240921,-500.0,0.00016438,2]
[342223953,1731598240930,-500.0,0.00016438,2]
[342223954,1731598240939,-500.0,0.00016438,2]
[342223955,1731598240949,-500.0,0.00016438,2]
[342223956,1731598240959,-500.0,0.00016438,2]
[342223957,1731598240968,-199.64318363,0.00016438,2]
[342223958,1731598240977,-503.89830398,0.00016438,2]
[342223959,1731598240987,-500.71020872,0.00016438,2]
[342223960,1731598240996,-500.0,0.00016438,2]
[342223961,1731598241006,-500.0,0.00016438,2]
[342223962,1731598241015,-502.42957704,0.00016438,2]
[342223963,1731598241025,-500.0,0.00016438,2]
[342223964,1731598241034,-200.03510804,0.00016438,2]
[342223965,1731598241043,-503.16047871,0.00016438,2]
[342223966,1731598241053,-500.0,0.00016438,2]
[342223967,1731598241062,-500.0,0.00016438,2]
[342223968,1731598241071,-1000.0,0.00016438,2]
[342223969,1731598241080,-500.0,0.00016438,2]
[342223970,1731598241089,-500.0,0.00016438,2]
[342223971,1731598241099,-500.0,0.00016438,2]
[342223972,1731598241108,-504.68183864,0.00016438,2]
[342223973,1731598241117,-500.0,0.00016438,2]
[342223974,1731598241126,-500.0,0.00016438,2]
[342223975,1731598241139,-500.0,0.00016438,2]
[342223976,1731598241148,-500.0,0.00016438,2]
[342223977,1731598241158,-500.0,0.00016438,2]
[342223978,1731598241167,-500.0,0.00016438,2]
[342223979,1731598241176,-500.0,0.00016438,2]
[342223980,1731598241186,-593.39498061,0.00016438,2]
[342223981,1731598241195,-523.95146946,0.00016438,2]
[342223982,1731598241205,-500.0,0.00016438,2]
[342223983,1731598241214,-506.00133937,0.00016438,2]
[342223984,1731598241224,-500.0,0.00016438,2]
[342223985,1731598241235,-500.0,0.00016438,2]
[342223986,1731598241244,-500.0,0.00016438,2]
[342223987,1731598241254,-500.0,0.00016438,2]
[342223988,1731598241263,-500.0,0.00016438,2]
[342223989,1731598241272,-500.0,0.00016438,2]
[342223990,1731598241282,-500.0,0.00016438,2]
[342223991,1731598241291,-500.0,0.00016438,2]
[342223992,1731598241301,-500.0,0.00016438,2]
[342223993,1731598241310,-500.0,0.00016438,2]
[342223994,1731598241319,-500.0,0.00016438,2]
[342223995,1731598241329,-500.0,0.00016438,2]
[342223996,1731598241339,-500.0,0.00016438,2]
[342223997,1731598241348,-500.0,0.00016438,2]
[342223998,1731598241357,-479.66522008,0.00016438,2]
[342223999,1731598241366,-500.0,0.00016438,2]
[342224000,1731598241376,-500.0,0.00016438,2]
[342224001,1731598241392,-500.0,0.00016438,2]
[342224002,1731598241401,-507.86109266,0.00016438,2]
[342224003,1731598241410,-500.0,0.00016438,2]
[342224004,1731598241420,-503.00189013,0.00016438,2]
[342224005,1731598241429,-500.0,0.00016438,2]
[342224006,1731598241438,-500.0,0.00016438,2]
[342224007,1731598241447,-512.36203563,0.00016438,2]
[342224008,1731598241456,-500.0,0.00016438,2]
[342224009,1731598241465,-500.0,0.00016438,2]
[342224010,1731598241474,-500.0,0.00016438,2]
[342224011,1731598241483,-500.0,0.00016438,2]
[342224012,1731598241492,-544.16786857,0.00016438,2]
[342224013,1731598241502,-500.0,0.00016438,2]
[342224014,1731598241644,-500.0,0.00016438,2]
[342224015,1731598241654,-500.0,0.00016438,2]